bitfinex/quotes_BTCUSD_20240723
["timestamp","ask_amount","ask_price","bid_price","bid_amount"]
[1721758575708,0.757895,65972.0,65971.0,0.12886359]
[1721758575911,1.061053,65972.0,65971.0,0.007]
[1721758576126,1.505811,65972.0,65971.0,0.007]
[1721758576545,1.555811,65972.0,65971.0,0.007]
[1721758576746,0.758067,65957.0,65956.0,0.000924]
[1721758577004,0.758067,65957.0,65956.0,0.2738381]
[1721758577005,1.061294,65957.0,65956.0,0.2738381]
[1721758577179,1.125694,65957.0,65956.0,0.000924]
[1721758577389,1.428921,65957.0,65956.0,0.000924]
[1721758579249,1.782148,65957.0,65956.0,0.000924]
[1721758579452,1.814348,65957.0,65956.0,0.00088382]
[1721758579879,1.511121,65957.0,65956.0,0.00088382]
[1721758580501,1.511121,65957.0,65956.0,0.00188382]
[1721758580743,1.511121,65957.0,65956.0,0.00088382]
[1721758581203,1.207894,65957.0,65956.0,0.00088382]
[1721758582411,0.904667,65957.0,65956.0,0.00088382]
[1721758582641,0.916667,65957.0,65956.0,0.00088382]
[1721758583224,0.919667,65957.0,65956.0,0.00088382]
[1721758583420,0.837467,65957.0,65956.0,0.00088382]
[1721758584359,0.773067,65957.0,65956.0,0.00088382]
[1721758584591,0.46984,65957.0,65956.0,0.14790373]
[1721758585000,0.773067,65957.0,65956.0,0.14790373]
[1721758585664,1.076294,65957.0,65956.0,0.00088382]
[1721758585918,1.061294,65957.0,65956.0,0.00088382]
[1721758586337,1.061294,65957.0,65956.0,0.00288382]
[1721758586671,1.061294,65957.0,65956.0,0.00088382]
[1721758586870,1.065294,65957.0,65956.0,0.00088382]
[1721758587658,0.762067,65957.0,65956.0,0.00088382]
[1721758587873,0.0782,65966.0,65956.0,0.14790373]
[1721758587874,0.151609,65959.0,65956.0,0.14790373]
[1721758588093,0.06,65967.0,65957.0,0.14981391]
[1721758588094,0.151607,65960.0,65957.0,0.14981391]
[1721758588283,0.363185,65967.0,65957.0,0.14981391]
[1721758588284,0.151606,65961.0,65957.0,0.14981391]
[1721758588488,0.3032,65963.0,65957.0,0.14981391]
[1721758588722,0.15161,65959.0,65957.0,0.14981391]
[1721758588934,0.454834,65958.0,65957.0,0.14701991]
[1721758589286,0.758057,65958.0,65957.0,0.14701991]
[1721758590211,0.454834,65958.0,65957.0,0.14801991]
[1721758590412,0.454834,65958.0,65957.0,0.15101991]
[1721758592013,0.758057,65958.0,65957.0,0.15101991]
[1721758592224,0.454834,65958.0,65957.0,0.15101991]
[1721758593464,0.07348942,65977.0,65958.0,0.303223]
[1721758593635,0.07348942,65977.0,65960.0,0.0615]
[1721758593636,0.366365,65971.0,65960.0,0.0615]
[1721758593843,0.8591,65975.0,65966.0,0.303186]
[1721758594202,0.8591,65975.0,65968.0,0.534565]
[1721758594203,0.7931,65975.0,65968.0,0.534565]
[1721758594386,0.7931,65975.0,65968.0,1.173139]
[1721758594607,0.7931,65975.0,65968.0,1.29900291]
[1721758594608,0.4788,65969.0,65968.0,1.29900291]
[1721758594954,0.4688,65969.0,65968.0,1.29900291]
[1721758595160,0.4688,65969.0,65968.0,0.99582591]
[1721758596171,0.4698,65969.0,65968.0,1.00982591]
[1721758596787,0.4698,65969.0,65968.0,0.70664891]
[1721758597036,0.4698,65969.0,65968.0,0.28688382]
[1721758597037,0.620386,65969.0,65968.0,0.28688382]
[1721758597244,0.923558,65969.0,65968.0,0.28688382]
[1721758597442,0.923558,65969.0,65968.0,0.30088428]
[1721758597443,0.924558,65969.0,65968.0,0.30088428]
[1721758597651,1.22773,65969.0,65968.0,0.30088428]
[1721758597823,0.924558,65969.0,65968.0,0.30088428]
[1721758598443,1.22773,65969.0,65968.0,0.13986437]
[1721758598635,1.530902,65969.0,65968.0,0.022]
[1721758599000,1.062102,65969.0,65968.0,0.022]
[1721758599199,0.45484,65957.0,65956.0,0.00088382]
[1721758599476,0.45484,65957.0,65956.0,0.12677184]
[1721758599633,0.151608,65960.0,65956.0,0.42540675]
[1721758599856,0.151608,65960.0,65957.0,0.27570193]
[1721758600067,0.151608,65960.0,65958.0,0.12588802]
[1721758600235,0.151608,65960.0,65956.0,0.00088382]
[1721758600236,0.151608,65960.0,65959.0,0.27570193]
[1721758600439,0.454822,65960.0,65959.0,0.27290274]
[1721758600644,0.151608,65960.0,65959.0,0.27290274]
[1721758601396,0.151608,65960.0,65959.0,0.3457668]
[1721758601595,0.151608,65960.0,65959.0,0.27290274]
[1721758601912,0.454822,65960.0,65959.0,0.27290274]
[1721758602489,0.454822,65960.0,65959.0,0.13488283]
[1721758602490,0.825636,65960.0,65959.0,0.13488283]
[1721758602690,1.12885,65960.0,65959.0,0.13488283]
[1721758602892,0.825636,65960.0,65959.0,0.13488283]
[1721758603304,0.825636,65960.0,65959.0,0.13188283]
[1721758603515,0.825636,65960.0,65959.0,0.13188888]
[1721758603716,0.824636,65960.0,65959.0,0.25377776]
[1721758603925,0.758036,65960.0,65959.0,0.25877776]
[1721758604303,0.758036,65960.0,65959.0,0.25377776]
[1721758605693,0.759036,65960.0,65959.0,0.25777776]
[1721758605978,0.759036,65960.0,65959.0,0.28364392]
[1721758605979,0.742536,65960.0,65959.0,0.28364392]
[1721758606279,0.742536,65960.0,65959.0,0.28664392]
[1721758606712,0.742536,65960.0,65959.0,0.16075504]
[1721758606886,0.742536,65960.0,65959.0,0.28664177]
[1721758608052,0.742536,65960.0,65959.0,0.26077561]
[1721758609233,0.742536,65960.0,65959.0,0.13488673]
[1721758610023,0.742536,65960.0,65959.0,0.13488667]
[1721758610767,0.136108,65960.0,65959.0,0.28190658]
[1721758610896,0.136108,65960.0,65959.0,0.34050952]
[1721758611249,0.439322,65960.0,65959.0,0.34050952]
[1721758612268,0.001,65960.0,65959.0,0.34050952]
[1721758612469,0.152607,65960.0,65959.0,0.34050952]
[1721758612868,0.455821,65960.0,65959.0,0.34050952]
[1721758613097,0.152607,65960.0,65959.0,0.34050743]
[1721758613299,0.455821,65960.0,65959.0,0.34050743]
[1721758613473,0.455821,65960.0,65959.0,0.49211643]
[1721758613474,0.001,65960.0,65959.0,0.49211643]
[1721758613705,0.001,65960.0,65959.0,0.34050743]
[1721758614641,0.152607,65960.0,65959.0,0.28190449]
[1721758615085,0.001,65960.0,65959.0,0.28190449]
[1721758615490,0.001,65960.0,65959.0,0.43351349]
[1721758615895,0.759035,65960.0,65959.0,0.28190449]
[1721758616105,0.759035,65960.0,65959.0,0.15601991]
[1721758616273,0.759035,65960.0,65959.0,0.28190677]
[1721758616476,0.759035,65960.0,65959.0,0.28283077]
[1721758616672,0.759875,65960.0,65959.0,0.28283077]
[1721758616976,0.825875,65960.0,65959.0,0.31120223]
[1721758617433,0.825875,65960.0,65959.0,0.28283077]
[1721758619325,0.825875,65960.0,65959.0,0.28282988]
[1721758620143,0.522661,65960.0,65959.0,0.28282988]
[1721758620948,0.825875,65960.0,65959.0,0.28282988]
[1721758621399,0.456661,65960.0,65959.0,0.28282988]
[1721758621535,0.00184,65960.0,65959.0,1.43193078]
[1721758621740,0.00184,65960.0,65959.0,0.60002914]
[1721758621959,0.153447,65960.0,65959.0,0.45332914]
[1721758622163,0.759875,65960.0,65959.0,0.28282988]
[1721758622419,0.758875,65960.0,65959.0,0.27682988]
[1721758622631,1.365303,65960.0,65959.0,0.12680892]
[1721758623119,1.365303,65960.0,65959.0,0.13680892]
[1721758623358,1.510403,65960.0,65959.0,0.010924]
[1721758623662,1.510403,65960.0,65959.0,0.023924]
[1721758623663,2.161403,65960.0,65959.0,0.023924]
[1721758623849,2.22839358,65960.0,65959.0,0.010924]
[1721758624312,2.2510571,65960.0,65959.0,0.010924]
[1721758625224,2.2510571,65960.0,65959.0,0.000924]
[1721758625226,2.613617,65960.0,65959.0,0.000924]
[1721758625498,3.00759956,65960.0,65959.0,0.000924]
[1721758625744,3.03759956,65960.0,65959.0,0.000924]
[1721758626002,2.89063691,65960.0,65959.0,0.005924]
[1721758626256,2.89063691,65960.0,65959.0,0.000924]
[1721758626739,2.89063691,65960.0,65959.0,0.003924]
[1721758627265,2.89063691,65960.0,65959.0,0.004924]
[1721758627622,2.89063691,65960.0,65959.0,0.003924]
[1721758627838,3.50051356,65960.0,65959.0,0.003924]
[1721758628591,3.19385091,65960.0,65959.0,0.000924]
[1721758628855,3.09385091,65960.0,65959.0,0.000924]
[1721758629091,3.09385091,65960.0,65959.0,0.002924]
[1721758629092,3.20785091,65960.0,65959.0,0.002924]
[1721758629341,3.20785091,65960.0,65959.0,0.001924]
[1721758629342,3.19385091,65960.0,65959.0,0.001924]
[1721758629547,3.19385091,65960.0,65959.0,0.000924]
[1721758629749,3.36755091,65960.0,65959.0,0.001924]
[1721758629925,3.32964007,65960.0,65959.0,0.000924]
[1721758630175,3.22964007,65960.0,65959.0,0.001924]
[1721758630356,3.20785091,65960.0,65959.0,0.002924]
[1721758630934,3.21627341,65960.0,65959.0,0.002924]
[1721758631568,3.21627341,65960.0,65959.0,0.001924]
[1721758631912,3.21627341,65960.0,65959.0,0.002924]
[1721758632123,3.52293606,65960.0,65959.0,0.002924]
[1721758632448,3.37597341,65960.0,65959.0,0.002924]
[1721758632678,3.36197341,65960.0,65959.0,0.001924]
[1721758632896,3.37597341,65960.0,65959.0,0.002924]
[1721758633304,3.37597341,65960.0,65959.0,0.001924]
[1721758633504,3.13027341,65960.0,65959.0,0.002924]
[1721758633705,3.23027341,65960.0,65959.0,0.002924]
[1721758635620,3.34327792,65960.0,65959.0,0.002924]
[1721758636027,3.23027341,65960.0,65959.0,0.002924]
[1721758636231,3.5029672,65960.0,65959.0,0.002924]
[1721758636443,3.38997341,65960.0,65959.0,0.002924]
[1721758638244,3.18027341,65960.0,65959.0,0.002924]
[1721758638453,3.22063874,65960.0,65959.0,0.002924]
[1721758638670,2.82705941,65960.0,65959.0,0.002924]
[1721758638884,2.8948356,65960.0,65959.0,0.002924]
[1721758639411,2.9948356,65960.0,65959.0,0.002924]
[1721758640413,2.92705941,65960.0,65959.0,0.002924]
[1721758642101,2.6800395,65960.0,65959.0,0.002924]
[1721758642286,2.71681804,65960.0,65959.0,0.002924]
[1721758642492,2.671617,65960.0,65959.0,0.002924]
[1721758642912,2.71682265,65960.0,65959.0,0.002924]
[1721758643115,2.67143453,65960.0,65959.0,0.002924]
[1721758643312,2.83923997,65960.0,65959.0,0.002924]
[1721758643553,2.77143453,65960.0,65959.0,0.002924]
[1721758643762,2.86184179,65960.0,65959.0,0.002924]
[1721758644346,2.62143453,65960.0,65959.0,0.002924]
[1721758644553,2.31822053,65960.0,65959.0,0.002924]
[1721758644756,2.11833878,65960.0,65959.0,0.002924]
[1721758645098,2.07312053,65960.0,65959.0,0.01715478]
[1721758645541,1.76990653,65960.0,65959.0,0.01715478]
[1721758645706,1.11990653,65960.0,65959.0,0.01715478]
[1721758646292,1.09190653,65960.0,65959.0,0.01615478]
[1721758646762,1.09190653,65960.0,65959.0,0.01715478]
[1721758646763,1.10090653,65960.0,65959.0,0.01715478]
[1721758646969,1.10090653,65960.0,65959.0,0.01615478]
[1721758647172,1.10090653,65960.0,65959.0,0.001924]
[1721758648312,1.10090653,65960.0,65959.0,0.002924]
[1721758649065,0.79769253,65960.0,65959.0,0.002924]
[1721758649520,1.10090653,65960.0,65959.0,0.002924]
[1721758649753,0.79769253,65960.0,65959.0,0.002924]
[1721758650021,1.10090653,65960.0,65959.0,0.002924]
[1721758652386,1.40412053,65960.0,65959.0,0.002924]
[1721758652591,2.19412053,65960.0,65959.0,0.002924]
[1721758652806,2.14412053,65960.0,65959.0,0.002924]
[1721758654351,2.18942724,65960.0,65959.0,0.002924]
[1721758656889,2.23946217,65960.0,65959.0,0.002924]
[1721758657092,2.565347,65960.0,65959.0,0.002924]
[1721758657274,3.03521709,65960.0,65959.0,0.002924]
[1721758657474,3.13521709,65960.0,65959.0,0.002924]
[1721758657684,3.43843109,65960.0,65959.0,0.002924]
[1721758658127,3.57445603,65960.0,65959.0,0.002924]
[1721758659260,3.59821505,65960.0,65959.0,0.002924]
[1721758659873,3.46219011,65960.0,65959.0,0.002924]
[1721758660691,3.45126125,65960.0,65959.0,0.002924]
[1721758661059,3.31522746,65960.0,65959.0,0.002924]
[1721758662285,3.45127287,65960.0,65959.0,0.002924]
[1721758662425,3.14805887,65960.0,65959.0,0.002924]
[1721758662637,3.30775887,65960.0,65959.0,0.002924]
[1721758662838,3.21809263,65960.0,65959.0,0.002924]
[1721758663118,3.52130663,65960.0,65959.0,0.002924]
[1721758663614,3.51235936,65960.0,65959.0,0.000924]
[1721758663842,3.51235936,65960.0,65953.0,0.00931962]
[1721758664073,3.51235936,65960.0,65925.0,0.009383]
[1721758664074,1.050587,65938.0,65925.0,0.009383]
[1721758664286,1.068032,65934.0,65925.0,0.009383]
[1721758664492,1.068032,65934.0,65929.0,1e-06]
[1721758664493,1.589932,65930.0,65929.0,1e-06]
[1721758664695,1.589932,65930.0,65925.0,0.009383]
[1721758664696,0.605055,65926.0,65925.0,0.009383]
[1721758664915,0.605055,65926.0,65906.0,0.0796]
[1721758664916,0.758642,65907.0,65906.0,0.0796]
[1721758665041,0.758642,65907.0,65901.0,0.0608]
[1721758665042,1.06218,65902.0,65901.0,0.0608]
[1721758665677,1.06218,65902.0,65901.0,0.18680642]
[1721758666491,1.06218,65902.0,65901.0,0.18680402]
[1721758667116,1.06218,65902.0,65901.0,0.0608]
[1721758667765,1.06318,65902.0,65901.0,0.0608]
[1721758668495,1.06218,65902.0,65901.0,0.0608]
[1721758668700,1.06318,65902.0,65901.0,0.0608]
[1721758669665,1.062197,65901.0,65900.0,0.0796]
[1721758670656,0.303429,65914.0,65900.0,0.22661991]
[1721758670833,0.455227,65901.0,65900.0,0.0796]
[1721758671036,0.152742,65901.0,65900.0,0.0796]
[1721758671235,0.456227,65901.0,65900.0,0.0796]
[1721758671514,0.758712,65901.0,65900.0,0.22861991]
[1721758671905,0.758712,65901.0,65900.0,0.22961991]
[1721758672155,0.15174,65902.0,65901.0,0.0639]
[1721758672359,0.15174,65902.0,65901.0,0.21091991]
[1721758672562,0.3034,65920.0,65904.0,0.2]
[1721758672786,0.3844,65925.0,65906.0,0.15173]
[1721758672787,0.2185,65925.0,65906.0,0.15173]
[1721758672992,0.151724,65909.0,65908.0,0.0791]
[1721758673203,0.455172,65909.0,65908.0,0.29001991]
[1721758673351,0.303432,65913.0,65908.0,0.29001991]
[1721758673550,0.303432,65913.0,65909.0,0.14981391]
[1721758673756,0.455166,65910.0,65909.0,0.14981391]
[1721758673957,0.455166,65910.0,65909.0,0.14701991]
[1721758675139,0.455166,65910.0,65909.0,0.16213853]
[1721758675744,0.457166,65910.0,65909.0,0.16213853]
[1721758676534,0.76061,65910.0,65909.0,0.16213853]
[1721758676758,0.002,65910.0,65909.0,0.16213853]
[1721758677134,0.002,65910.0,65909.0,0.61831053]
[1721758677348,0.002,65910.0,65909.0,0.75911053]
[1721758678450,0.002,65910.0,65909.0,0.88507971]
[1721758678658,0.002,65910.0,65909.0,0.75811053]
[1721758678885,0.003,65910.0,65909.0,1.40737893]
[1721758679059,0.002,65910.0,65909.0,1.03581231]
[1721758679212,0.151704,65918.0,65914.0,0.2]
[1721758679432,0.303396,65921.0,65917.0,0.1438]
[1721758679433,0.151699,65920.0,65917.0,0.1438]
[1721758679630,0.151699,65920.0,65918.0,0.14981391]
[1721758680039,0.151697,65921.0,65918.0,0.14981391]
[1721758680211,0.151699,65920.0,65918.0,0.14981391]
[1721758680630,0.07348942,65932.0,65918.0,0.14981391]
[1721758680631,0.151701,65919.0,65918.0,0.14981391]
[1721758680823,0.758505,65919.0,65918.0,0.14701991]
[1721758681019,0.29198942,65932.0,65917.0,0.1488]
[1721758681020,0.758517,65918.0,65917.0,0.1488]
[1721758681280,1.061924,65918.0,65917.0,0.0872]
[1721758681653,1.061924,65918.0,65917.0,0.0822]
[1721758682469,0.45511,65918.0,65917.0,0.0822]
[1721758682670,0.45511,65918.0,65917.0,0.0852]
[1721758682871,0.758517,65918.0,65917.0,0.0852]
[1721758683072,1.061924,65918.0,65917.0,0.0852]
[1721758683681,1.063924,65918.0,65917.0,0.0852]
[1721758683964,0.760517,65918.0,65917.0,0.0852]
[1721758684183,0.758517,65918.0,65917.0,0.0852]
[1721758684626,1.063924,65918.0,65917.0,0.0822]
[1721758684830,1.063924,65918.0,65914.0,0.01511862]
[1721758684831,0.758552,65915.0,65914.0,0.01511862]
[1721758685073,0.758552,65915.0,65914.0,0.16213853]
[1721758685447,0.15171,65915.0,65914.0,0.16213853]
[1721758685820,0.306409,65918.0,65914.0,0.28811015]
[1721758686026,0.455124,65916.0,65915.0,0.23844043]
[1721758686265,0.305407,65918.0,65915.0,0.27299085]
[1721758686266,0.002,65918.0,65915.0,0.27299085]
[1721758686464,0.153703,65918.0,65916.0,0.12876494]
[1721758686670,0.45711,65918.0,65917.0,0.14701991]
[1721758686890,0.760517,65918.0,65917.0,0.14701991]
[1721758687081,0.45711,65918.0,65917.0,0.14701991]
[1721758687231,0.45711,65918.0,65917.0,0.2729915]
[1721758687232,0.151703,65918.0,65917.0,0.2729915]
[1721758687431,0.303383,65924.0,65917.0,0.2729915]
[1721758687432,0.00084,65933.0,65918.0,0.1392]
[1721758687657,0.00084,65933.0,65922.0,0.151693]
[1721758687658,0.151685,65926.0,65922.0,0.151693]
[1721758687917,0.151683,65927.0,65923.0,0.27578386]
[1721758688197,0.00084,65933.0,65924.0,0.12595641]
[1721758688198,0.303362,65928.0,65924.0,0.12595641]
[1721758688385,0.151685,65926.0,65925.0,0.41497032]
[1721758688573,0.151683,65927.0,65925.0,0.41217632]
[1721758688777,0.151682,65927.0,65926.0,0.002794]
[1721758688982,0.151682,65927.0,65926.0,0.14981391]
[1721758689185,0.00084,65933.0,65926.0,0.14981391]
[1721758689371,0.152682,65927.0,65926.0,0.002794]
[1721758689584,0.152682,65927.0,65926.0,0.12874489]
[1721758689798,0.001,65927.0,65926.0,0.12874489]
[1721758690007,0.002,65927.0,65926.0,0.12874489]
[1721758690799,0.002,65927.0,65926.0,0.12595089]
[1721758691028,0.002,65927.0,65926.0,0.36680642]
[1721758691226,0.00084,65933.0,65927.0,0.151682]
[1721758691428,0.00084,65933.0,65928.0,0.27576557]
[1721758691429,0.303343,65932.0,65928.0,0.27576557]
[1721758691627,0.00084,65933.0,65928.0,0.27576557]
[1721758691628,0.151674,65931.0,65929.0,0.12595166]
[1721758691832,0.151674,65931.0,65930.0,0.14981391]
[1721758691995,0.151674,65931.0,65930.0,0.14701991]
[1721758691996,0.455021,65931.0,65930.0,0.14701991]
[1721758692354,0.758368,65931.0,65930.0,0.14701991]
[1721758693174,0.455021,65931.0,65930.0,0.14701991]
[1721758693441,0.455021,65931.0,65930.0,0.27296909]
[1721758694067,0.758368,65931.0,65930.0,0.27296909]
[1721758694275,0.455028,65930.0,65929.0,0.01611862]
[1721758694504,0.455028,65930.0,65929.0,0.01511862]
[1721758694726,1.921732,65930.0,65929.0,0.01511862]
[1721758694932,2.000532,65930.0,65929.0,0.01511862]
[1721758695355,2.303884,65930.0,65929.0,0.01511862]
[1721758695561,1.511584,65930.0,65929.0,0.01511862]
[1721758695793,2.384584,65930.0,65929.0,0.01611862]
[1721758696168,2.54054665,65930.0,65929.0,0.01611862]
[1721758696368,2.58354665,65930.0,65929.0,0.01511862]
[1721758696777,2.53354665,65930.0,65929.0,0.01511862]
[1721758697150,2.386584,65930.0,65929.0,0.01511862]
[1721758697912,2.388584,65930.0,65929.0,0.01611862]
[1721758698113,1.942732,65930.0,65929.0,0.01611862]
[1721758698332,1.956732,65930.0,65929.0,0.01611862]
[1721758698532,1.061732,65930.0,65929.0,0.01511862]
[1721758698897,1.072732,65930.0,65929.0,0.01611862]
[1721758699091,0.78238,65930.0,65929.0,0.28909295]
[1721758699478,0.78238,65930.0,65929.0,0.27397433]
[1721758699479,0.175676,65930.0,65929.0,0.27397433]
[1721758699699,0.164676,65930.0,65929.0,0.27297433]
[1721758700103,0.013,65930.0,65929.0,0.27297433]
[1721758700354,0.013,65930.0,65929.0,0.21191991]
[1721758700527,0.164676,65930.0,65929.0,0.33786781]
[1721758700985,0.455028,65930.0,65929.0,0.33786781]
[1721758701299,0.464028,65930.0,65929.0,0.33986781]
[1721758701424,0.464028,65930.0,65929.0,0.33886781]
[1721758701629,0.160676,65930.0,65929.0,0.33886781]
[1721758701910,0.151676,65930.0,65929.0,0.33986781]
[1721758702076,0.455028,65930.0,65929.0,0.33986781]
[1721758702266,0.152676,65930.0,65929.0,0.33986781]
[1721758702852,0.152676,65930.0,65929.0,0.33986845]
[1721758703030,0.456028,65930.0,65929.0,0.33986845]
[1721758703238,0.456028,65930.0,65929.0,0.27496845]
[1721758703239,0.75938,65930.0,65929.0,0.27496845]
[1721758703448,0.456028,65930.0,65929.0,0.27496845]
[1721758703644,0.456028,65930.0,65929.0,0.27496892]
[1721758705055,0.152676,65930.0,65929.0,0.27496892]
[1721758705465,0.456028,65930.0,65929.0,0.27496892]
[1721758706635,0.152676,65930.0,65929.0,0.27496892]
[1721758706837,0.152676,65930.0,65929.0,0.27496839]
[1721758706838,0.456028,65930.0,65929.0,0.27496839]
[1721758707040,0.001,65930.0,65929.0,0.27496839]
[1721758707220,0.001,65930.0,65929.0,1.67651439]
[1721758707407,0.001,65930.0,65929.0,2.31947861]
[1721758707603,0.001,65930.0,65929.0,2.98068663]
[1721758708560,0.03,65932.0,65931.0,1.44256508]
[1721758708759,0.03,65932.0,65931.0,1.95256864]
[1721758708964,0.03,65932.0,65931.0,2.05256864]
[1721758709406,0.03,65932.0,65931.0,1.87031217]
[1721758709564,0.03,65932.0,65931.0,0.61750817]
[1721758709787,0.03,65932.0,65931.0,0.90588525]
[1721758710196,0.03,65932.0,65931.0,1.20923225]
[1721758710717,0.03,65932.0,65931.0,1.51257925]
[1721758710938,0.03,65932.0,65931.0,1.56257925]
[1721758711338,0.031,65932.0,65931.0,1.7175419]
[1721758711536,0.031,65932.0,65931.0,1.7235419]
[1721758711739,0.031,65932.0,65931.0,1.3701949]
[1721758711938,0.031,65932.0,65931.0,1.3641949]
[1721758712157,0.03184,65932.0,65931.0,1.3641949]
[1721758712360,0.03284,65932.0,65931.0,1.3809889]
[1721758712969,0.03184,65932.0,65931.0,1.3729897]
[1721758713292,0.03184,65932.0,65931.0,1.6763367]
[1721758713522,0.03084,65932.0,65931.0,1.3561957]
[1721758713733,0.03084,65932.0,65931.0,1.20923305]
[1721758713937,0.03184,65932.0,65931.0,1.21090843]
[1721758714137,0.03184,65932.0,65931.0,1.37681299]
[1721758714339,0.03184,65932.0,65931.0,1.82724999]
[1721758714340,0.03284,65932.0,65931.0,1.82724999]
[1721758714550,0.03284,65932.0,65931.0,1.92441707]
[1721758714795,0.03284,65932.0,65931.0,2.07137972]
[1721758714997,0.03284,65932.0,65931.0,2.07337972]
[1721758715638,0.03284,65932.0,65931.0,2.07137972]
[1721758716116,0.03284,65932.0,65931.0,2.07207458]
[1721758716955,0.03284,65932.0,65931.0,1.9721135]
[1721758717595,0.03284,65932.0,65931.0,2.07207458]
[1721758718268,0.03284,65932.0,65931.0,1.9721135]
[1721758718698,0.03284,65932.0,65931.0,2.07207458]
[1721758718836,0.03284,65932.0,65931.0,2.17207458]
[1721758719271,0.03284,65932.0,65931.0,2.17407458]
[1721758719612,0.03284,65932.0,65931.0,3.32557458]
[1721758720115,0.03284,65932.0,65931.0,3.15896074]
[1721758720287,0.03284,65932.0,65931.0,3.32561886]
[1721758721420,0.03284,65932.0,65931.0,2.63425813]
[1721758721626,0.03284,65932.0,65931.0,1.31410001]
[1721758722490,0.03284,65932.0,65931.0,0.87096417]
[1721758723118,0.03284,65932.0,65931.0,1.17431117]
[1721758723910,0.03284,65932.0,65931.0,0.31594417]
[1721758724114,0.487853,65932.0,65931.0,0.29294417]
[1721758724312,0.487853,65932.0,65931.0,0.14592426]
[1721758724313,1.234837,65932.0,65931.0,0.14592426]
[1721758724465,1.234837,65932.0,65931.0,0.02]
[1721758724843,1.538179,65932.0,65931.0,0.02]
[1721758725057,1.233837,65932.0,65931.0,0.014]
[1721758725533,1.539179,65932.0,65931.0,0.014]
[1721758725939,1.537179,65932.0,65931.0,0.014]
[1721758727412,1.233837,65932.0,65931.0,0.014]
[1721758727698,1.061795,65926.0,65925.0,0.000924]
[1721758727928,1.061795,65926.0,65925.0,0.01604262]
[1721758728129,0.758425,65926.0,65925.0,0.01604262]
[1721758729514,0.761425,65926.0,65925.0,0.01604262]
[1721758730587,0.458055,65926.0,65925.0,0.01604262]
[1721758730802,0.17114,65932.0,65926.0,0.002794]
[1721758730948,0.455047,65927.0,65926.0,0.14701991]
[1721758731390,0.151677,65930.0,65927.0,0.002794]
[1721758731602,0.151677,65930.0,65929.0,0.002794]
[1721758731746,0.151674,65931.0,65929.0,0.27297211]
[1721758731969,0.151676,65930.0,65929.0,0.14701991]
[1721758732174,0.303347,65931.0,65929.0,0.27296785]
[1721758732378,0.03084,65932.0,65930.0,0.14701991]
[1721758732743,0.03084,65932.0,65931.0,0.002794]
[1721758732990,0.03084,65932.0,65931.0,0.60483391]
[1721758733169,0.03084,65932.0,65931.0,1.03133338]
[1721758733516,0.928295,65932.0,65931.0,0.12594647]
[1721758733725,1.231637,65932.0,65931.0,0.12594647]
[1721758733925,1.231637,65932.0,65925.0,0.01604262]
[1721758733926,0.820225,65926.0,65925.0,0.01604262]
[1721758734126,1.123595,65926.0,65925.0,0.01604262]
[1721758735331,1.126595,65926.0,65925.0,0.01604262]
[1721758735534,1.127595,65926.0,65925.0,0.01604262]
[1721758735976,1.430965,65926.0,65925.0,0.01604262]
[1721758736563,1.43078243,65926.0,65925.0,0.01604262]
[1721758739196,1.43078243,65926.0,65925.0,0.000924]
[1721758740014,1.12741243,65926.0,65925.0,0.000924]
[1721758740851,1.12341243,65926.0,65925.0,0.000924]
[1721758741227,1.12541243,65926.0,65925.0,0.000924]
[1721758741625,1.12341243,65926.0,65925.0,0.000924]
[1721758741829,1.12341243,65926.0,65925.0,0.002924]
[1721758742064,1.12441243,65926.0,65925.0,0.002924]
[1721758742565,0.82104243,65926.0,65925.0,0.002924]
[1721758745268,0.75924243,65926.0,65925.0,0.002924]
[1721758745470,0.001,65926.0,65925.0,0.002924]
[1721758745819,0.152685,65926.0,65925.0,0.12887958]
[1721758746214,0.152685,65926.0,65925.0,0.62887958]
[1721758747057,0.001,65926.0,65925.0,1.65037345]
[1721758747255,0.001,65926.0,65925.0,2.01584845]
[1721758747461,0.001,65926.0,65925.0,1.71247345]
[1721758747677,0.001,65926.0,65925.0,1.71245919]
[1721758747866,0.03084,65932.0,65928.0,0.15168]
[1721758748060,0.03084,65932.0,65930.0,0.002794]
[1721758748259,0.03084,65932.0,65931.0,0.27296123]
[1721758748260,0.182511,65932.0,65931.0,0.27296123]
[1721758748663,0.485853,65932.0,65931.0,0.27296123]
[1721758748872,0.789195,65932.0,65931.0,0.27296123]
[1721758749079,1.170037,65932.0,65931.0,0.12594132]
[1721758749501,1.170037,65932.0,65928.0,0.01511862]
[1721758749502,0.75839,65929.0,65928.0,0.01511862]
[1721758749704,1.061746,65929.0,65928.0,0.14107007]
[1721758750120,1.127846,65929.0,65928.0,0.01611862]
[1721758750319,1.127846,65929.0,65928.0,0.02011862]
[1721758750519,1.127846,65929.0,65928.0,0.14607403]
[1721758750855,1.127846,65929.0,65928.0,0.141075]
[1721758751032,1.128846,65929.0,65928.0,0.153075]
[1721758751193,1.127846,65929.0,65928.0,0.146075]
[1721758751421,1.127846,65929.0,65928.0,0.141075]
[1721758751621,1.132846,65929.0,65928.0,0.141075]
[1721758751856,1.139846,65929.0,65928.0,0.142075]
[1721758752055,1.134846,65929.0,65928.0,0.142075]
[1721758753003,0.462034,65929.0,65928.0,0.35339481]
[1721758753153,0.455034,65929.0,65928.0,0.28809491]
[1721758753353,0.455034,65929.0,65928.0,0.29109491]
[1721758753578,0.151678,65929.0,65928.0,0.29109491]
[1721758753777,0.455034,65929.0,65928.0,0.28809491]
[1721758754072,0.467034,65929.0,65928.0,0.2890925]
[1721758754242,0.158678,65929.0,65928.0,0.2890925]
[1721758754443,0.455034,65929.0,65928.0,0.41260065]
[1721758754617,0.456034,65929.0,65928.0,0.2940925]
[1721758754819,0.001,65929.0,65928.0,0.28297388]
[1721758755049,0.001,65929.0,65928.0,0.38136367]
[1721758755645,0.152678,65929.0,65928.0,0.28297388]
[1721758756214,0.001,65929.0,65928.0,0.28297388]
[1721758756409,0.152678,65929.0,65928.0,0.28297388]
[1721758756617,0.001,65929.0,65928.0,0.28297388]